[Event "Late-Titled-Tuesday-Blitz-September-05-2023"]
[Site "Chess.com"]
[Date "2023.09.05"]
[Round "5"]
[White "FairChess_on_YouTube"]
[Black "GP9isback23"]
[Result "1/2-1/2"]
[WhiteElo "3037"]
[BlackElo "2679"]
[TimeControl "180+1"]
[EndTime "14:57:30 PDT"]
[Termination "Game drawn by repetition"]

1. c4 {[%clk 0:03:00.9]} 1... e6 {[%clk 0:02:44.8]} 2. Nc3 {[%clk 0:02:59.4]}
2... d5 {[%clk 0:02:44.2]} 3. d4 {[%clk 0:02:58.4]} 3... Nf6 {[%clk 0:02:43.4]}
4. cxd5 {[%clk 0:02:57.9]} 4... exd5 {[%clk 0:02:42.5]} 5. Bg5 {[%clk
0:02:57.6]} 5... Be7 {[%clk 0:02:38.3]} 6. e3 {[%clk 0:02:57.7]} 6... c6 {[%clk
0:02:38.4]} 7. Bd3 {[%clk 0:02:56.9]} 7... O-O {[%clk 0:02:34.7]} 8. Nge2 {[%clk
0:02:56.4]} 8... Nbd7 {[%clk 0:02:35.1]} 9. O-O {[%clk 0:02:55.1]} 9... h6
{[%clk 0:02:32.7]} 10. Bh4 {[%clk 0:02:53.4]} 10... Ne4 {[%clk 0:02:25.2]} 11.
Bxe7 {[%clk 0:02:51.9]} 11... Qxe7 {[%clk 0:02:26.1]} 12. Qc2 {[%clk 0:02:46.8]}
12... Ndf6 {[%clk 0:02:18.3]} 13. Rae1 {[%clk 0:02:46.7]} 13... Re8 {[%clk
0:02:00.5]} 14. f3 {[%clk 0:02:44.7]} 14... Nxc3 {[%clk 0:01:59.8]} 15. Nxc3
{[%clk 0:02:45.6]} 15... c5 {[%clk 0:01:57.2]} 16. dxc5 {[%clk 0:02:42.4]} 16...
Qxc5 {[%clk 0:01:55.5]} 17. Nb5 {[%clk 0:02:42.2]} 17... Qxc2 {[%clk 0:01:49.9]}
18. Bxc2 {[%clk 0:02:43.1]} 18... Rd8 {[%clk 0:01:40.1]} 19. Kf2 {[%clk
0:02:41.6]} 19... Be6 {[%clk 0:01:39.8]} 20. Rc1 {[%clk 0:02:39.4]} 20... a6
{[%clk 0:01:39.3]} 21. Nd4 {[%clk 0:02:38.4]} 21... Rac8 {[%clk 0:01:39.5]} 22.
Bb3 {[%clk 0:02:37.6]} 22... Kf8 {[%clk 0:01:37.5]} 23. g4 {[%clk 0:02:32.5]}
23... Ke7 {[%clk 0:01:32.8]} 24. h4 {[%clk 0:02:31.7]} 24... Nd7 {[%clk
0:01:23.1]} 25. Kg3 {[%clk 0:02:19.3]} 25... Nc5 {[%clk 0:01:20.8]} 26. Bc2
{[%clk 0:02:18.6]} 26... Rc7 {[%clk 0:01:08.6]} 27. Bf5 {[%clk 0:02:07.9]} 27...
Rdc8 {[%clk 0:01:05.3]} 28. b3 {[%clk 0:02:07.7]} 28... Ne4+ {[%clk 0:01:01.5]}
29. fxe4 {[%clk 0:02:06.6]} 29... Rxc1 {[%clk 0:01:01.6]} 30. Rf2 {[%clk
0:02:06.3]} 30... dxe4 {[%clk 0:00:54.1]} 31. Bxe4 {[%clk 0:02:06.1]} 31... Rg1+
{[%clk 0:00:52.9]} 32. Kh2 {[%clk 0:01:50.6]} 32... Rxg4 {[%clk 0:00:48.9]} 33.
Bxb7 {[%clk 0:01:50.2]} 33... Rc3 {[%clk 0:00:40.3]} 34. Bxa6 {[%clk 0:01:48.2]}
34... Rxe3 {[%clk 0:00:37.6]} 35. Nxe6 {[%clk 0:01:48.3]} 35... fxe6 {[%clk
0:00:34.9]} 36. Bc4 {[%clk 0:01:47.7]} 36... Rxh4+ {[%clk 0:00:34.2]} 37. Kg2
{[%clk 0:01:47.5]} 37... Rg4+ {[%clk 0:00:32.3]} 38. Kh2 {[%clk 0:01:47.8]}
38... g5 {[%clk 0:00:26.1]} 39. a4 {[%clk 0:01:47.9]} 39... Rf4 {[%clk
0:00:26.3]} 40. Ra2 {[%clk 0:01:46.7]} 40... Rxc4 {[%clk 0:00:20.7]} 41. bxc4
{[%clk 0:01:46.5]} 41... Rc3 {[%clk 0:00:21.5]} 42. a5 {[%clk 0:01:43.8]} 42...
Rxc4 {[%clk 0:00:22]} 43. a6 {[%clk 0:01:44.2]} 43... Rc8 {[%clk 0:00:22.3]} 44.
a7 {[%clk 0:01:43.7]} 44... Ra8 {[%clk 0:00:22.6]} 45. Kg3 {[%clk 0:01:41.5]}
45... h5 {[%clk 0:00:22.8]} 46. Ra5 {[%clk 0:01:35.9]} 46... Kf6 {[%clk
0:00:22.3]} 47. Kf3 {[%clk 0:01:36.5]} 47... Kg6 {[%clk 0:00:18]} 48. Kg3 {[%clk
0:01:32.2]} 48... Kf6 {[%clk 0:00:16.5]} 49. Kf3 {[%clk 0:01:32.6]} 49... Kg6
{[%clk 0:00:12.6]} 50. Kg3 {[%clk 0:01:32.9]} 50... e5 {[%clk 0:00:07.7]} 51.
Ra1 {[%clk 0:01:31.3]} 51... Kf5 {[%clk 0:00:06.5]} 52. Rf1+ {[%clk 0:01:30.6]}
52... Ke6 {[%clk 0:00:06.2]} 53. Ra1 {[%clk 0:01:30.2]} 53... Kf6 {[%clk
0:00:04.6]} 54. Rf1+ {[%clk 0:01:29]} 54... Kg6 {[%clk 0:00:05.1]} 55. Ra1
{[%clk 0:01:29.3]} 55... e4 {[%clk 0:00:03.9]} 56. Ra6+ {[%clk 0:01:26]} 56...
Kf5 {[%clk 0:00:04.3]} 57. Ra5+ {[%clk 0:01:26.6]} 57... Kf6 {[%clk 0:00:05]}
58. Ra6+ {[%clk 0:01:26.9]} 58... Ke5 {[%clk 0:00:05.4]} 59. Ra5+ {[%clk
0:01:26.3]} 59... Kd4 {[%clk 0:00:05.9]} 60. Kf2 {[%clk 0:01:22.9]} 60... h4
{[%clk 0:00:04.5]} 61. Ra4+ {[%clk 0:01:20.6]} 61... Ke5 {[%clk 0:00:04.4]} 62.
Ke3 {[%clk 0:01:21.1]} 62... Kf5 {[%clk 0:00:05]} 63. Ra5+ {[%clk 0:01:14.5]}
63... Kg4 {[%clk 0:00:05.3]} 64. Kf2 {[%clk 0:01:05.4]} 64... Kf4 {[%clk
0:00:05.6]} 65. Ra6 {[%clk 0:01:05.1]} 65... g4 {[%clk 0:00:05]} 66. Rf6+ {[%clk
0:01:05.2]} 66... Ke5 {[%clk 0:00:05.5]} 67. Rf7 {[%clk 0:01:05.5]} 67... Kd4
{[%clk 0:00:03.6]} 68. Rd7+ {[%clk 0:01:04.2]} 68... Ke5 {[%clk 0:00:03.7]} 69.
Re7+ {[%clk 0:01:02.4]} 69... Kf5 {[%clk 0:00:03.5]} 70. Rf7+ {[%clk 0:01:02.8]}
70... Ke6 {[%clk 0:00:03.8]} 71. Rh7 {[%clk 0:00:58.9]} 71... Kf5 {[%clk
0:00:02.9]} 72. Rf7+ {[%clk 0:00:58]} 72... Kg5 {[%clk 0:00:03.5]} 73. Rg7+
{[%clk 0:00:57.9]} 73... Kf4 {[%clk 0:00:04]} 74. Rf7+ {[%clk 0:00:58.1]} 74...
Ke5 {[%clk 0:00:04.7]} 75. Re7+ {[%clk 0:00:58.5]} 75... Kd4 {[%clk 0:00:05.3]}
76. Rd7+ {[%clk 0:00:58.2]} 76... Ke5 {[%clk 0:00:05.1]} 77. Re7+ {[%clk
0:00:58.6]} 1/2-1/2

[Event "Late-Titled-Tuesday-Blitz-September-05-2023"]
[Site "Chess.com"]
[Date "2023.09.05"]
[Round "5"]
[White "JackRodgers"]
[Black "Truequitos"]
[Result "1-0"]
[WhiteElo "2598"]
[BlackElo "2432"]
[TimeControl "180+1"]
[EndTime "14:57:32 PDT"]
[Termination "JackRodgers won on time"]

1. d4 {[%clk 0:03:00.9]} 1... Nf6 {[%clk 0:02:58]} 2. Bg5 {[%clk 0:03:00.4]}
2... e6 {[%clk 0:02:55.8]} 3. e4 {[%clk 0:02:59.2]} 3... Be7 {[%clk 0:02:44.8]}
4. e5 {[%clk 0:02:59.1]} 4... Nd5 {[%clk 0:02:44.2]} 5. Bxe7 {[%clk 0:02:58.5]}
5... Nxe7 {[%clk 0:02:44.6]} 6. Nf3 {[%clk 0:02:55.8]} 6... d6 {[%clk 0:02:45]}
7. Bd3 {[%clk 0:02:55.6]} 7... Nbc6 {[%clk 0:02:40.4]} 8. O-O {[%clk 0:02:53.2]}
8... dxe5 {[%clk 0:02:27.2]} 9. dxe5 {[%clk 0:02:52.9]} 9... Ng6 {[%clk
0:02:27.6]} 10. Re1 {[%clk 0:02:49.5]} 10... O-O {[%clk 0:02:23.2]} 11. Nc3
{[%clk 0:02:45.3]} 11... Nf4 {[%clk 0:02:20]} 12. Be4 {[%clk 0:02:25.3]} 12...
Ne7 {[%clk 0:01:53.8]} 13. Qc1 {[%clk 0:02:20.7]} 13... Nfd5 {[%clk 0:01:52]}
14. Rd1 {[%clk 0:02:12.9]} 14... Nxc3 {[%clk 0:01:28.4]} 15. Rxd8 {[%clk
0:01:43.9]} 15... Ne2+ {[%clk 0:01:27.2]} 16. Kf1 {[%clk 0:01:44.5]} 16... Nxc1
{[%clk 0:01:27.5]} 17. Rxf8+ {[%clk 0:01:44.5]} 17... Kxf8 {[%clk 0:01:27.4]}
18. Rxc1 {[%clk 0:01:45.3]} 18... Bd7 {[%clk 0:01:16.8]} 19. Rd1 {[%clk
0:01:42.2]} 19... Ke8 {[%clk 0:01:10.9]} 20. Bxh7 {[%clk 0:01:19.9]} 20... g6
{[%clk 0:01:02.2]} 21. h4 {[%clk 0:01:18.5]} 21... Bb5+ {[%clk 0:00:52.8]} 22.
Ke1 {[%clk 0:01:14.6]} 22... Kf8 {[%clk 0:00:51.5]} 23. h5 {[%clk 0:01:13.7]}
23... Kg7 {[%clk 0:00:51.3]} 24. hxg6 {[%clk 0:01:09.3]} 24... fxg6 {[%clk
0:00:52.2]} 25. Ng5 {[%clk 0:01:07.9]} 25... Kh6 {[%clk 0:00:19]} 26. Nxe6
{[%clk 0:01:06.7]} 26... Rc8 {[%clk 0:00:19.6]} 27. Nd4 {[%clk 0:00:47.6]} 27...
Be8 {[%clk 0:00:14.9]} 28. Bxg6 {[%clk 0:00:44.3]} 28... Nxg6 {[%clk 0:00:14.1]}
29. Nf5+ {[%clk 0:00:40.5]} 29... Kg5 {[%clk 0:00:12.9]} 30. Ne3 {[%clk
0:00:32.5]} 30... Nxe5 {[%clk 0:00:11.3]} 31. Rd5 {[%clk 0:00:33.1]} 31... Kf6
{[%clk 0:00:11.3]} 32. f4 {[%clk 0:00:31.4]} 32... Ng6 {[%clk 0:00:09.3]} 33. g4
{[%clk 0:00:30]} 33... Bc6 {[%clk 0:00:08.7]} 34. Rf5+ {[%clk 0:00:27.2]} 34...
Ke6 {[%clk 0:00:08.6]} 35. Ra5 {[%clk 0:00:25.8]} 35... a6 {[%clk 0:00:07.8]}
36. f5+ {[%clk 0:00:25.7]} 36... Kf6 {[%clk 0:00:07.8]} 37. fxg6 {[%clk
0:00:26.3]} 37... Kxg6 {[%clk 0:00:08.1]} 38. Ke2 {[%clk 0:00:26]} 38... Rf8
{[%clk 0:00:08]} 39. Rf5 {[%clk 0:00:25.2]} 39... Re8 {[%clk 0:00:07]} 40. Rf4
{[%clk 0:00:23.7]} 40... b6 {[%clk 0:00:05.7]} 41. c4 {[%clk 0:00:23.7]} 41...
b5 {[%clk 0:00:05.6]} 42. Kd3 {[%clk 0:00:21.7]} 42... Rd8+ {[%clk 0:00:05.1]}
43. Rd4 {[%clk 0:00:20.9]} 43... Re8 {[%clk 0:00:02.8]} 44. b3 {[%clk
0:00:19.5]} 44... Kg5 {[%clk 0:00:01.4]} 45. Nd5 {[%clk 0:00:17.5]} 45... Re1
{[%clk 0:00:01.1]} 46. Nxc7 {[%clk 0:00:15.5]} 46... Bf3 {[%clk 0:00:01.3]} 47.
Nxa6 {[%clk 0:00:14]} 47... Bxg4 {[%clk 0:00:01.8]} 48. cxb5 {[%clk 0:00:13.6]}
48... Rd1+ {[%clk 0:00:02.4]} 49. Kc3 {[%clk 0:00:13.9]} 49... Rc1+ {[%clk
0:00:02.7]} 50. Kb4 {[%clk 0:00:14.3]} 50... Bf5 {[%clk 0:00:01.7]} 51. a4
{[%clk 0:00:13.3]} 51... Rb1 {[%clk 0:00:02.2]} 52. Nc5 {[%clk 0:00:13.3]} 52...
Rc1 {[%clk 0:00:02]} 53. b6 {[%clk 0:00:13.6]} 1-0

[Event "Late-Titled-Tuesday-Blitz-September-05-2023"]
[Site "Chess.com"]
[Date "2023.09.05"]
[Round "5"]
[White "CraiggoryC"]
[Black "Sinquefield"]
[Result "0-1"]
[WhiteElo "2238"]
[BlackElo "2468"]
[TimeControl "180+1"]
[EndTime "14:57:32 PDT"]
[Termination "Sinquefield won by checkmate"]

1. e4 {[%clk 0:02:56.6]} 1... e5 {[%clk 0:02:59.6]} 2. Nf3 {[%clk 0:02:56.2]}
2... Nc6 {[%clk 0:02:59.1]} 3. Bb5 {[%clk 0:02:52.5]} 3... Nf6 {[%clk
0:02:58.1]} 4. d3 {[%clk 0:02:51.8]} 4... Bc5 {[%clk 0:02:26.6]} 5. Bxc6 {[%clk
0:02:50.7]} 5... dxc6 {[%clk 0:02:25.3]} 6. Nbd2 {[%clk 0:02:50.6]} 6... Qe7
{[%clk 0:02:17.8]} 7. Nc4 {[%clk 0:02:44]} 7... Bd6 {[%clk 0:01:47.7]} 8. O-O
{[%clk 0:02:38.2]} 8... Bg4 {[%clk 0:01:42.1]} 9. Ne3 {[%clk 0:02:33.1]} 9...
O-O-O {[%clk 0:01:30.3]} 10. Nxg4 {[%clk 0:02:23.1]} 10... Nxg4 {[%clk
0:01:29.2]} 11. h3 {[%clk 0:02:19.8]} 11... Nf6 {[%clk 0:01:21.4]} 12. Nh2
{[%clk 0:02:10.5]} 12... h6 {[%clk 0:01:08]} 13. Ng4 {[%clk 0:02:08.5]} 13... g5
{[%clk 0:01:06.9]} 14. Ne3 {[%clk 0:01:52.2]} 14... Rdg8 {[%clk 0:00:54.5]} 15.
Nf5 {[%clk 0:01:44.9]} 15... Qe6 {[%clk 0:00:53.7]} 16. Re1 {[%clk 0:01:41.2]}
16... h5 {[%clk 0:00:23.3]} 17. g3 {[%clk 0:01:20.5]} 17... Bc5 {[%clk 0:00:17]}
18. Be3 {[%clk 0:01:18.3]} 18... Bxe3 {[%clk 0:00:15.1]} 19. Rxe3 {[%clk
0:01:18.6]} 19... Ne8 {[%clk 0:00:12.1]} 20. c3 {[%clk 0:01:11.6]} 20... Nd6
{[%clk 0:00:12.3]} 21. Qf3 {[%clk 0:00:58.7]} 21... g4 {[%clk 0:00:09.2]} 22.
Nxd6+ {[%clk 0:00:57.7]} 22... cxd6 {[%clk 0:00:07.2]} 23. Qf5 {[%clk
0:00:57.7]} 23... Qxf5 {[%clk 0:00:07.6]} 24. exf5 {[%clk 0:00:58.6]} 24... gxh3
{[%clk 0:00:08.4]} 25. Kh2 {[%clk 0:00:56.4]} 25... h4 {[%clk 0:00:08.5]} 26.
Rg1 {[%clk 0:00:50.6]} 26... Rg5 {[%clk 0:00:08.3]} 27. g4 {[%clk 0:00:47]}
27... Rhg8 {[%clk 0:00:07.6]} 28. f3 {[%clk 0:00:47.4]} 28... Kd7 {[%clk
0:00:07.6]} 29. Kxh3 {[%clk 0:00:39.8]} 29... Rxf5 {[%clk 0:00:06]} 30. gxf5
{[%clk 0:00:40.2]} 30... Rxg1 {[%clk 0:00:05.5]} 31. Kxh4 {[%clk 0:00:40.7]}
31... Rg2 {[%clk 0:00:05]} 32. d4 {[%clk 0:00:39]} 32... f6 {[%clk 0:00:02.9]}
33. dxe5 {[%clk 0:00:39]} 33... dxe5 {[%clk 0:00:03.8]} 34. Rd3+ {[%clk
0:00:35.9]} 34... Ke7 {[%clk 0:00:03.8]} 35. Re3 {[%clk 0:00:32.3]} 35... Rxb2
{[%clk 0:00:03]} 36. f4 {[%clk 0:00:32.8]} 36... Kd6 {[%clk 0:00:01.8]} 37.
fxe5+ {[%clk 0:00:32.9]} 37... fxe5 {[%clk 0:00:02.7]} 38. f6 {[%clk 0:00:33.4]}
38... Rf2 {[%clk 0:00:02.4]} 39. Kg5 {[%clk 0:00:32.6]} 39... Ke6 {[%clk
0:00:03]} 40. c4 {[%clk 0:00:29.1]} 40... Rxf6 {[%clk 0:00:03.5]} 41. Ra3 {[%clk
0:00:24.5]} 41... a6 {[%clk 0:00:03.6]} 42. c5 {[%clk 0:00:23.4]} 42... Rf7
{[%clk 0:00:03.8]} 43. Rd3 {[%clk 0:00:22.5]} 43... Rg7+ {[%clk 0:00:04.1]} 44.
Kh6 {[%clk 0:00:21.8]} 44... Rd7 {[%clk 0:00:04.2]} 45. Rg3 {[%clk 0:00:17.8]}
45... e4 {[%clk 0:00:04.2]} 46. Kg6 {[%clk 0:00:14.9]} 46... Ke5 {[%clk
0:00:04.5]} 47. Rg5+ {[%clk 0:00:14.4]} 47... Kf4 {[%clk 0:00:04.5]} 48. Rf5+
{[%clk 0:00:14.5]} 48... Kg3 {[%clk 0:00:03.4]} 49. Re5 {[%clk 0:00:13.6]} 49...
Kf3 {[%clk 0:00:03.4]} 50. Kf6 {[%clk 0:00:13.4]} 50... e3 {[%clk 0:00:03.9]}
51. Ke6 {[%clk 0:00:13]} 51... Rd5 {[%clk 0:00:03.2]} 52. Rxd5 {[%clk
0:00:10.3]} 52... cxd5 {[%clk 0:00:04.1]} 53. Kxd5 {[%clk 0:00:09.8]} 53... e2
{[%clk 0:00:04.2]} 54. Kd6 {[%clk 0:00:10.3]} 54... e1=Q {[%clk 0:00:04.6]} 55.
Kc7 {[%clk 0:00:11.2]} 55... Qb4 {[%clk 0:00:04.5]} 56. c6 {[%clk 0:00:10.5]}
56... bxc6 {[%clk 0:00:04.9]} 57. Kxc6 {[%clk 0:00:10.7]} 57... Qb5+ {[%clk
0:00:05.7]} 58. Kc7 {[%clk 0:00:10.8]} 58... Qa4 {[%clk 0:00:06.6]} 59. a3
{[%clk 0:00:11]} 59... Qxa3 {[%clk 0:00:06.9]} 60. Kb7 {[%clk 0:00:11.1]} 60...
Qb4+ {[%clk 0:00:07.1]} 61. Ka7 {[%clk 0:00:12]} 61... a5 {[%clk 0:00:07.5]} 62.
Ka8 {[%clk 0:00:12.7]} 62... a4 {[%clk 0:00:08.4]} 63. Ka7 {[%clk 0:00:13.4]}
63... a3 {[%clk 0:00:09.3]} 64. Ka8 {[%clk 0:00:14.3]} 64... a2 {[%clk
0:00:10.2]} 65. Ka7 {[%clk 0:00:15.2]} 65... a1=Q# {[%clk 0:00:11.1]} 0-1

[Event "Late-Titled-Tuesday-Blitz-September-05-2023"]
[Site "Chess.com"]
[Date "2023.09.05"]
[Round "5"]
[White "ContrVersia"]
[Black "willyam13"]
[Result "1-0"]
[WhiteElo "2886"]
[BlackElo "2475"]
[TimeControl "180+1"]
[EndTime "14:57:36 PDT"]
[Termination "ContrVersia won by resignation"]

1. Nf3 {[%clk 0:03:00.9]} 1... Nf6 {[%clk 0:02:59.3]} 2. c4 {[%clk 0:03:01.3]}
2... e6 {[%clk 0:02:59.4]} 3. g3 {[%clk 0:03:01.7]} 3... b6 {[%clk 0:02:58.7]}
4. Bg2 {[%clk 0:03:02.1]} 4... Bb7 {[%clk 0:02:59.4]} 5. O-O {[%clk 0:03:02.6]}
5... d5 {[%clk 0:02:54.6]} 6. cxd5 {[%clk 0:03:01.8]} 6... exd5 {[%clk
0:02:53.9]} 7. d4 {[%clk 0:03:01.6]} 7... Bd6 {[%clk 0:02:53.2]} 8. Nc3 {[%clk
0:03:01.8]} 8... O-O {[%clk 0:02:53]} 9. Qb3 {[%clk 0:02:57.1]} 9... h6 {[%clk
0:02:49]} 10. Ne5 {[%clk 0:02:50]} 10... c6 {[%clk 0:02:27.1]} 11. Bf4 {[%clk
0:02:48]} 11... Qe7 {[%clk 0:02:16.8]} 12. Rfe1 {[%clk 0:02:37]} 12... Nbd7
{[%clk 0:01:49.3]} 13. e4 {[%clk 0:02:30.6]} 13... dxe4 {[%clk 0:01:44.7]} 14.
Nxe4 {[%clk 0:02:26.3]} 14... Nxe4 {[%clk 0:01:44]} 15. Rxe4 {[%clk 0:01:53.1]}
15... Nxe5 {[%clk 0:01:39]} 16. Bxe5 {[%clk 0:01:47.2]} 16... c5 {[%clk
0:01:21.9]} 17. Rg4 {[%clk 0:00:49.5]} 17... Bxe5 {[%clk 0:01:15.9]} 18. Bxb7
{[%clk 0:00:49.1]} 18... Qxb7 {[%clk 0:00:52.9]} 19. dxe5 {[%clk 0:00:49]} 19...
Rfe8 {[%clk 0:00:40.6]} 20. Re1 {[%clk 0:00:48.9]} 20... Re6 {[%clk 0:00:38.4]}
21. Rge4 {[%clk 0:00:39]} 21... Rd8 {[%clk 0:00:37.4]} 22. f4 {[%clk 0:00:39.1]}
22... Qd5 {[%clk 0:00:32.8]} 23. Qf3 {[%clk 0:00:30.8]} 23... Re7 {[%clk
0:00:31.7]} 24. b3 {[%clk 0:00:26.2]} 24... a5 {[%clk 0:00:27.8]} 25. Qg4 {[%clk
0:00:21.1]} 25... Rde8 {[%clk 0:00:22.9]} 26. Qe2 {[%clk 0:00:19.8]} 26... Rd8
{[%clk 0:00:22.1]} 27. f5 {[%clk 0:00:19.4]} 27... Qd2 {[%clk 0:00:17]} 28. Qg4
{[%clk 0:00:14.9]} 28... Qg5 {[%clk 0:00:15.8]} 29. Qxg5 {[%clk 0:00:11.5]}
29... hxg5 {[%clk 0:00:16.7]} 30. R4e2 {[%clk 0:00:12.1]} 30... Rd5 {[%clk
0:00:15]} 31. g4 {[%clk 0:00:12.2]} 31... Rd4 {[%clk 0:00:14.6]} 32. h3 {[%clk
0:00:12.7]} 32... Rd3 {[%clk 0:00:14.7]} 33. Kg2 {[%clk 0:00:13.2]} 33... Rd5
{[%clk 0:00:14.3]} 34. Kf2 {[%clk 0:00:10.8]} 34... Kf8 {[%clk 0:00:13.6]} 35.
Re3 {[%clk 0:00:10.6]} 35... Ke8 {[%clk 0:00:12.9]} 36. R1e2 {[%clk 0:00:11]}
36... Rd4 {[%clk 0:00:12.9]} 37. e6 {[%clk 0:00:10.4]} 37... Kf8 {[%clk
0:00:05.6]} 38. Kg3 {[%clk 0:00:09.7]} 38... Rd5 {[%clk 0:00:04.8]} 39. exf7
{[%clk 0:00:09]} 39... Rxe3+ {[%clk 0:00:04.2]} 40. Rxe3 {[%clk 0:00:09.9]}
40... Kxf7 {[%clk 0:00:04]} 41. Re6 {[%clk 0:00:07]} 41... b5 {[%clk 0:00:02.7]}
42. Kf3 {[%clk 0:00:06]} 42... Rd3+ {[%clk 0:00:03.6]} 43. Re3 {[%clk 0:00:06]}
43... Rd2 {[%clk 0:00:03.8]} 44. Re5 {[%clk 0:00:04.9]} 44... Rd3+ {[%clk
0:00:04]} 45. Ke4 {[%clk 0:00:04.8]} 45... Rc3 {[%clk 0:00:04.3]} 46. Rd5 {[%clk
0:00:04.6]} 46... c4 {[%clk 0:00:04.3]} 47. Rxb5 {[%clk 0:00:04.4]} 47... cxb3
{[%clk 0:00:03.2]} 48. Rxb3 {[%clk 0:00:04.7]} 48... Rc4+ {[%clk 0:00:04.1]} 49.
Kd5 {[%clk 0:00:04.7]} 49... Ra4 {[%clk 0:00:04.8]} 50. a3 {[%clk 0:00:04.6]}
50... Kf6 {[%clk 0:00:04.5]} 51. Rb6+ {[%clk 0:00:04.9]} 51... Kf7 {[%clk
0:00:04.1]} 52. Rb7+ {[%clk 0:00:05.8]} 52... Kf6 {[%clk 0:00:04.3]} 53. Rb6+
{[%clk 0:00:06.2]} 53... Kf7 {[%clk 0:00:04.9]} 54. Rb3 {[%clk 0:00:07.1]} 54...
Kf6 {[%clk 0:00:05.5]} 55. Kc5 {[%clk 0:00:07.4]} 55... Kf7 {[%clk 0:00:05.5]}
56. Kb5 {[%clk 0:00:07.7]} 56... Re4 {[%clk 0:00:05.2]} 57. Kxa5 {[%clk
0:00:08.2]} 57... Re5+ {[%clk 0:00:05.4]} 58. Kb6 {[%clk 0:00:08.6]} 58... Re4
{[%clk 0:00:05.6]} 59. Kb5 {[%clk 0:00:07.9]} 59... Kf6 {[%clk 0:00:06.2]} 60.
a4 {[%clk 0:00:08.1]} 60... Ke5 {[%clk 0:00:06.9]} 61. a5 {[%clk 0:00:08.3]}
61... Kf4 {[%clk 0:00:07.8]} 62. Rb4 {[%clk 0:00:08.4]} 62... Rxb4+ {[%clk
0:00:05.9]} 63. Kxb4 {[%clk 0:00:09.3]} 1-0

[Event "Late-Titled-Tuesday-Blitz-September-05-2023"]
[Site "Chess.com"]
[Date "2023.09.05"]
[Round "5"]
[White "RIPOL"]
[Black "WPWPWP-2015"]
[Result "0-1"]
[WhiteElo "2412"]
[BlackElo "2549"]
[TimeControl "180+1"]
[EndTime "14:57:38 PDT"]
[Termination "WPWPWP-2015 won by resignation"]

1. d4 {[%clk 0:02:58.7]} 1... d5 {[%clk 0:02:55.4]} 2. c4 {[%clk 0:02:57.7]}
2... dxc4 {[%clk 0:02:50.7]} 3. e3 {[%clk 0:02:56.6]} 3... Nf6 {[%clk
0:02:49.9]} 4. Bxc4 {[%clk 0:02:54.6]} 4... e6 {[%clk 0:02:49.9]} 5. Qe2 {[%clk
0:02:53.7]} 5... c5 {[%clk 0:02:49.2]} 6. Nf3 {[%clk 0:02:52.6]} 6... cxd4
{[%clk 0:02:49.2]} 7. exd4 {[%clk 0:02:46.8]} 7... Be7 {[%clk 0:02:48]} 8. O-O
{[%clk 0:02:45.9]} 8... O-O {[%clk 0:02:47.5]} 9. Nc3 {[%clk 0:02:45.3]} 9... a6
{[%clk 0:02:46.5]} 10. Rd1 {[%clk 0:02:42]} 10... b5 {[%clk 0:02:42.6]} 11. Bb3
{[%clk 0:02:36.1]} 11... Bb7 {[%clk 0:02:41.9]} 12. Bg5 {[%clk 0:02:35.5]} 12...
Nbd7 {[%clk 0:02:40.5]} 13. Ne5 {[%clk 0:02:32.1]} 13... b4 {[%clk 0:02:30.6]}
14. Na4 {[%clk 0:01:57.3]} 14... Nd5 {[%clk 0:02:23.7]} 15. Bxe7 {[%clk
0:01:51.4]} 15... Qxe7 {[%clk 0:02:14.5]} 16. Bxd5 {[%clk 0:01:41.8]} 16... Bxd5
{[%clk 0:01:50.9]} 17. Nxd7 {[%clk 0:01:39.2]} 17... Qxd7 {[%clk 0:01:42.1]} 18.
Nb6 {[%clk 0:01:37.5]} 18... Qb7 {[%clk 0:01:38.5]} 19. Nxa8 {[%clk 0:01:29.3]}
19... Bxg2 {[%clk 0:01:35.8]} 20. Rd3 {[%clk 0:01:12.5]} 20... Bd5 {[%clk
0:01:12.3]} 21. Rg3 {[%clk 0:00:57.8]} 21... Qxa8 {[%clk 0:01:10.8]} 22. Rc1
{[%clk 0:00:55.1]} 22... g6 {[%clk 0:01:03.2]} 23. Rc5 {[%clk 0:00:52.2]} 23...
h5 {[%clk 0:00:55.9]} 24. Qe3 {[%clk 0:00:43]} 24... Kh7 {[%clk 0:00:52.3]} 25.
Qg5 {[%clk 0:00:39.9]} 25... Qd8 {[%clk 0:00:34.8]} 26. Qxd8 {[%clk 0:00:37.3]}
26... Rxd8 {[%clk 0:00:34.3]} 27. Ra5 {[%clk 0:00:30.1]} 27... Rd6 {[%clk
0:00:33.6]} 28. f4 {[%clk 0:00:26.7]} 28... Kg7 {[%clk 0:00:32.9]} 29. Kf2
{[%clk 0:00:24.9]} 29... Kf6 {[%clk 0:00:25.5]} 30. Ke3 {[%clk 0:00:24.6]} 30...
Bc4 {[%clk 0:00:22.2]} 31. Rg1 {[%clk 0:00:23.4]} 31... Bb5 {[%clk 0:00:21.5]}
32. a3 {[%clk 0:00:21.7]} 32... b3 {[%clk 0:00:20.4]} 33. a4 {[%clk 0:00:21.3]}
33... Bc4 {[%clk 0:00:17.2]} 34. Rc1 {[%clk 0:00:21.5]} 34... Bd5 {[%clk
0:00:16.9]} 35. Rcc5 {[%clk 0:00:20.8]} 35... Kf5 {[%clk 0:00:16.5]} 36. h3
{[%clk 0:00:19.3]} 36... g5 {[%clk 0:00:15.1]} 37. fxg5 {[%clk 0:00:18.4]} 37...
Kxg5 {[%clk 0:00:16]} 38. Rc7 {[%clk 0:00:18]} 38... Kh4 {[%clk 0:00:15.2]} 39.
Rxf7 {[%clk 0:00:16.8]} 39... Kxh3 {[%clk 0:00:14.1]} 40. Rc5 {[%clk 0:00:17.2]}
40... Rd8 {[%clk 0:00:10]} 41. Rh7 {[%clk 0:00:16.4]} 41... h4 {[%clk
0:00:09.2]} 42. Rc3 {[%clk 0:00:16]} 42... Rg8 {[%clk 0:00:08.4]} 43. Kf4+
{[%clk 0:00:15.6]} 43... Kg2 {[%clk 0:00:06.6]} 44. Rxh4 {[%clk 0:00:14.5]}
44... Rf8+ {[%clk 0:00:06.7]} 45. Ke5 {[%clk 0:00:13.9]} 45... Rf2 {[%clk
0:00:06.7]} 46. Rh6 {[%clk 0:00:10.3]} 46... Rxb2 {[%clk 0:00:06.1]} 47. Rxe6
{[%clk 0:00:10.3]} 47... Bxe6 {[%clk 0:00:04.9]} 48. Kxe6 {[%clk 0:00:10.3]}
48... Re2+ {[%clk 0:00:04]} 49. Kd6 {[%clk 0:00:09.3]} 49... b2 {[%clk
0:00:04.2]} 50. Rb3 {[%clk 0:00:09.2]} 50... Kf2 {[%clk 0:00:03.1]} 51. d5
{[%clk 0:00:09.1]} 51... Rd2 {[%clk 0:00:03]} 52. Kc7 {[%clk 0:00:07.7]} 52...
Ke2 {[%clk 0:00:03.2]} 53. d6 {[%clk 0:00:07.4]} 53... Kd1 {[%clk 0:00:03.6]}
54. d7 {[%clk 0:00:07.1]} 54... Kc2 {[%clk 0:00:03.9]} 55. Rxb2+ {[%clk
0:00:06.5]} 55... Kxb2 {[%clk 0:00:04.3]} 56. d8=Q {[%clk 0:00:04.9]} 56... Rxd8
{[%clk 0:00:04.3]} 57. Kxd8 {[%clk 0:00:04.9]} 57... Kb3 {[%clk 0:00:04.8]} 58.
Kc7 {[%clk 0:00:04.9]} 58... Kxa4 {[%clk 0:00:04.9]} 59. Kb6 {[%clk 0:00:04.9]}
59... a5 {[%clk 0:00:05.3]} 60. Kc5 {[%clk 0:00:04.8]} 60... Kb3 {[%clk
0:00:05.6]} 61. Kd4 {[%clk 0:00:04.8]} 61... a4 {[%clk 0:00:06.1]} 0-1